[Event "Karnataka State Open-ch 2018"]
[Site "Bengaluru"]
[Date "2018.04.18"]
[Round "9"]
[White "Kalki Eshwar D"]
[Black "Balkishan, A.."]
[Result "0-1"]
[ECO "B24"]
[WhiteElo "1515"]
[BlackElo "2026"]
[Annotator "NA RC"]
[PlyCount "132"]
[EventDate "2018.??.??"]
[EventType "swiss"]
[EventCountry "IND"]
[SourceTitle "playchess.com"]
[Source "ChessBase"]
[SourceQuality "1"]
[TimeControl "5400+30"]

1. e4 {[%emt 0:00:00]} c5 {[%emt 0:00:53]} 2. Nc3 {[%emt 0:00:00]} Nc6 {[%emt 0:00:07]} 3. Bb5 {[%emt 0:00:00]} Nd4 {[%emt 0:00:15]} 4. f4 {[%emt 0:00:07]} g6 {[%emt 0:00:18]} 5. Nf3 {[%emt 0:00:09]} Bg7 {[%emt 0:00:20]} 6. O-O {[%emt 0:00:14]} a6 {[%emt 0:03:01]} 7. Bd3 {[%emt 0:00:25]} Nc6 {[%emt 0:02:42]} 8. a4 {[%emt 0:03:54]} d6 {[%emt 0:01:59]} 9. Qe1 {[%emt 0:01:36]} Nf6 {[%emt 0:01:18]} 10. e5 {[%emt 0:00:43]} dxe5 {[%emt 0:01:07]} 11. fxe5 {[%emt 0:02:37]} Ng4 {[%emt 0:01:12]} 12. e6 {[%emt 0:08:11]} Bxe6 {[%emt 0:14:39]} 13. Ng5 {[%emt 0:02:27]} Qd6 {[%emt 0:05:50]} 14. Qh4 {[%emt 0:00:36]} Nf6 {[%emt 0:04:41]} 15. Nxe6 {[%emt 0:00:47]} Qxe6 {[%emt 0:00:02]} 16. Bc4 {[%emt 0:00:28]} Qd6 {[%emt 0:01:22]} 17. Ne2 {[%emt 0:11:49]} Nd4 {[%emt 0:01:57]} 18. Nxd4 {[%emt 0:00:13]} Qxd4+ {[%emt 0:00:10]} 19. Qxd4 {[%emt 0:00:06]} cxd4 {[%emt 0:00:09]} 20. d3 {[%emt 0:00:25]} h6 {[%emt 0:01:54]} 21. Bf4 {[%emt 0:00:33]} O-O {[%emt 0:01:26]} 22. a5 {[%emt 0:02:03]} e6 {[%emt 0:02:35]} 23. Ra3 {[%emt 0:02:15]} Rfd8 {[%emt 0:02:47]} 24. Bxh6 {[%emt 0:02:54]} Bxh6 {[%emt 0:05:13]} 25. Rxf6 {[%emt 0:00:08]} Kg7 {[%emt 0:00:30]} 26. Rf3 {[%emt 0:01:06]} Rd7 {[%emt 0:01:43]} 27. Rb3 {[%emt 0:00:45]} Be3+ {[%emt 0:01:24]} 28. Kf1 {[%emt 0:00:15]} Rh8 {[%emt 0:00:02]} 29. h3 {[%emt 0:04:04]} Rh5 {[%emt 0:00:02]} 30. Ra3 {[%emt 0:00:09]} Bc1 {[%emt 0:00:08]} 31. Ra2 {[%emt 0:05:42]} Bd2 {[%emt 0:02:12]} 32. g4 {[%emt 0:02:59]} Re5 {[%emt 0:00:16]} 33. Rf2 {[%emt 0:04:04]} Bxa5 {[%emt 0:00:21]} 34. Re2 {[%emt 0:00:22]} Rxe2 {[%emt 0:02:35]} 35. Kxe2 {[%emt 0:00:17]} Bb4 {[%emt 0:00:08]} 36. Ra1 {[%emt 0:01:52]} b5 {[%emt 0:02:29]} 37. Bb3 {[%emt 0:00:14]} a5 {[%emt 0:00:02]} 38. Rf1 {[%emt 0:00:17]} g5 {[%emt 0:02:06]} 39. h4 {[%emt 0:00:44]} gxh4 {[%emt 0:00:18]} 40. Rh1 {[%emt 0:00:55]} Rc7 {[%emt 0:00:19]} 41. Kd1 {[%emt 0:01:27]} Be7 {[%emt 0:00:04]} 42. Re1 {[%emt 0:00:24]} Kg6 {[%emt 0:02:47]} 43. Re5 {[%emt 0:00:39]} Rc5 {[%emt 0:00:02]} 44. Rxc5 {[%emt 0:01:18]} Bxc5 {[%emt 0:00:02]} 45. Ke2 {[%emt 0:00:28]} Kg5 {[%emt 0:00:03]} 46. Kf3 {[%emt 0:01:17]} a4 {[%emt 0:00:03]} 47. Ba2 {[%emt 0:00:55]} Bb4 {[%emt 0:00:02]} 48. Bb1 {[%emt 0:01:12]} Bd2 {[%emt 0:00:03]} 49. Ba2 {[%emt 0:01:04]} Bc1 {[%emt 0:00:08]} 50. c4 dxc3 {[%emt 0:00:04]} 51. bxc3 {[%emt 0:01:43]} Bd2 {[%emt 0:00:06]} 52. c4 {[%emt 0:00:23]} b4 {[%emt 0:00:02]} 53. c5 {[%emt 0:01:39]} b3 {[%emt 0:00:05]} 54. c6 {[%emt 0:00:03]} Bf4 {[%emt 0:00:08]} 55. Bb1 {[%emt 0:00:19]} a3 {[%emt 0:00:02]} 56. d4 {[%emt 0:00:06]} a2 {[%emt 0:00:04]} 57. c7 {[%emt 0:00:05]} Bxc7 {[%emt 0:00:03]} 58. Bxa2 {[%emt 0:00:04]} bxa2 {[%emt 0:00:06]} 59. d5 {[%emt 0:00:01]} a1=Q {[%emt 0:00:08]} 60. d6 {[%emt 0:00:05]} Bxd6 {[%emt 0:00:06]} 61. Ke4 {[%emt 0:00:04]} Qa4+ {[%emt 0:00:25]} 62. Kf3 {[%emt 0:00:09]} Qd4 {[%emt 0:00:23]} 63. Kg2 {[%emt 0:00:21]} Qe3 {[%emt 0:00:08]} 64. Kh1 {[%emt 0:00:05]} Qe2 {[%emt 0:00:10]} 65. Kg1 {[%emt 0:00:06]} Kxg4 {[%emt 0:00:05]} 66. Kh1 {[%emt 0:00:03]} Qh2# {[%emt 0:00:06]} 0-1

[Event "Karnataka State Open-ch 2018"]
[Site "Bengaluru"]
[Date "2018.04.18"]
[Round "9"]
[White "Samith Reddy I"]
[Black "Sameer, Ghotane"]
[Result "1/2-1/2"]
[ECO "B22"]
[WhiteElo "1480"]
[BlackElo "1881"]
[Annotator "NA RC"]
[PlyCount "136"]
[EventDate "2018.??.??"]
[EventType "swiss"]
[EventCountry "IND"]
[SourceTitle "playchess.com"]
[Source "ChessBase"]
[SourceQuality "1"]
[TimeControl "5400+30"]

1. e4 {[%emt 0:00:00]} c5 {[%emt 0:01:11]} 2. c3 {[%emt 0:00:00]} g6 {[%emt 0:01:13]} 3. d4 {[%emt 0:00:00]} cxd4 {[%emt 0:00:04]} 4. cxd4 {[%emt 0:00:00]} d5 {[%emt 0:00:05]} 5. exd5 {[%emt 0:00:02]} Nf6 {[%emt 0:00:04]} 6. Nc3 {[%emt 0:00:06]} Bg7 {[%emt 0:01:37]} 7. Nf3 {[%emt 0:00:08]} O-O {[%emt 0:00:18]} 8. Bc4 {[%emt 0:00:11]} Nbd7 {[%emt 0:00:04]} 9. O-O {[%emt 0:00:09]} Nb6 {[%emt 0:00:02]} 10. Bb3 {[%emt 0:00:07]} Nbxd5 {[%emt 0:00:08]} 11. Be3 {[%emt 0:00:05]} b6 {[%emt 0:00:38]} 12. Qd2 {[%emt 0:00:15]} Bb7 {[%emt 0:00:30]} 13. Nxd5 {[%emt 0:00:18]} Bxd5 {[%emt 0:00:19]} 14. Bxd5 {[%emt 0:02:27]} Qxd5 {[%emt 0:00:22]} 15. b3 {[%emt 0:03:09]} Rfd8 {[%emt 0:05:03]} 16. Rac1 {[%emt 0:00:55]} Ne4 {[%emt 0:04:07]} 17. Qb2 {[%emt 0:02:24]} Nd6 {[%emt 0:05:38]} 18. h3 {[%emt 0:04:08]} Nf5 {[%emt 0:02:35]} 19. Rfd1 {[%emt 0:03:42]} Nxe3 {[%emt 0:00:58]} 20. fxe3 {[%emt 0:00:08]} Qe4 {[%emt 0:01:06]} 21. Kf2 {[%emt 0:01:13]} Bh6 {[%emt 0:00:26]} 22. Qe2 {[%emt 0:00:17]} Rac8 {[%emt 0:00:58]} 23. Nd2 {[%emt 0:02:46]} Qf5+ {[%emt 0:03:07]} 24. Nf3 {[%emt 0:00:27]} Qa5 {[%emt 0:05:02]} 25. Ne5 {[%emt 0:01:15]} Bg7 {[%emt 0:16:51]} 26. Nc6 {[%emt 0:01:07]} Qa3 {[%emt 0:00:06]} 27. Rc2 {[%emt 0:01:35]} Re8 {[%emt 0:02:05]} 28. Rdc1 {[%emt 0:01:39]} Rc7 {[%emt 0:00:24]} 29. Qb5 {[%emt 0:01:43]} Rf8 {[%emt 0:05:10]} 30. Qb4 {[%emt 0:00:45]} Qxb4 {[%emt 0:01:15]} 31. Nxb4 {[%emt 0:00:06]} Rd7 {[%emt 0:02:07]} 32. Rc7 {[%emt 0:00:50]} Rfd8 {[%emt 0:00:46]} 33. R1c6 {[%emt 0:04:37]} f5 {[%emt 0:01:20]} 34. Kf3 {[%emt 0:02:11]} e5 {[%emt 0:01:21]} 35. dxe5 {[%emt 0:00:46]} Bxe5 {[%emt 0:00:32]} 36. Rxd7 {[%emt 0:00:25]} Rxd7 {[%emt 0:00:05]} 37. Rc8+ {[%emt 0:00:12]} Kg7 {[%emt 0:04:25]} 38. Nc6 {[%emt 0:01:27]} Bf6 {[%emt 0:03:23]} 39. Ra8 {[%emt 0:00:52]} a5 {[%emt 0:00:09]} 40. Rb8 {[%emt 0:00:44]} h5 {[%emt 0:01:39]} 41. Rxb6 {[%emt 0:00:20]} Rd2 {[%emt 0:00:07]} 42. Nxa5 {[%emt 0:00:13]} Rxa2 {[%emt 0:00:51]} 43. Nc4 {[%emt 0:00:19]} g5 {[%emt 0:00:08]} 44. g4 {[%emt 0:00:30]} fxg4+ {[%emt 0:02:47]} 45. hxg4 {[%emt 0:00:07]} h4 {[%emt 0:00:08]} 46. Nd6 {[%emt 0:02:50]} Be5 {[%emt 0:04:13]} 47. Nf5+ {[%emt 0:00:13]} Kf7 {[%emt 0:01:35]} 48. Rb7+ {[%emt 0:00:45]} Kf8 {[%emt 0:00:25]} 49. b4 {[%emt 0:00:08]} h3 {[%emt 0:04:25]} 50. Rh7 {[%emt 0:00:39]} h2 {[%emt 0:00:23]} 51. Ng3 {[%emt 0:00:12]} Rb2 {[%emt 0:01:09]} 52. b5 {[%emt 0:00:11]} Kg8 {[%emt 0:01:09]} 53. Rh5 {[%emt 0:00:07]} Kf7 {[%emt 0:00:05]} 54. b6 {[%emt 0:01:49]} Kg6 {[%emt 0:02:21]} 55. b7 {[%emt 0:00:30]} Kf7 {[%emt 0:00:23]} 56. Rh7+ {[%emt 0:01:14]} Ke6 {[%emt 0:00:20]} 57. Rh6+ {[%emt 0:00:25]} Kd7 {[%emt 0:00:04]} 58. Rh7+ {[%emt 0:00:24]} Kc6 {[%emt 0:00:10]} 59. Ne4 {[%emt 0:00:19]} Bc7 {[%emt 0:01:05]} 60. Nf2 {[%emt 0:02:52]} Kxb7 {[%emt 0:00:31]} 61. Rh8 {[%emt 0:02:13]} Be5 {[%emt 0:00:26]} 62. Rh7+ {[%emt 0:00:12]} Kc6 {[%emt 0:00:07]} 63. Nd3 {[%emt 0:00:31]} Rb5 {[%emt 0:09:20]} 64. Nxe5+ {[%emt 0:00:11]} Rxe5 {[%emt 0:00:01]} 65. Rxh2 {[%emt 0:00:07]} Kd5 {[%emt 0:00:25]} 66. Rd2+ {[%emt 0:00:15]} Ke6 {[%emt 0:00:04]} 67. Ra2 {[%emt 0:00:05]} Rb5 {[%emt 0:00:17]} 68. Ra6+ {[%emt 0:00:06]} Kf7 1/2-1/2

[Event "Karnataka State Open-ch 2018"]
[Site "Bengaluru"]
[Date "2018.04.18"]
[Round "9"]
[White "Shriya R Revankar"]
[Black "Sanjay Sindhia, MH."]
[Result "0-1"]
[ECO "B23"]
[WhiteElo "1472"]
[BlackElo "1761"]
[Annotator "NA RC"]
[PlyCount "62"]
[EventDate "2018.??.??"]
[EventType "swiss"]
[EventCountry "IND"]
[SourceTitle "playchess.com"]
[Source "ChessBase"]
[SourceQuality "1"]
[TimeControl "5400+30"]

1. e4 {[%emt 0:00:00]} c5 {[%emt 0:00:23]} 2. Nc3 {[%emt 0:00:00]} a6 {[%emt 0:00:46]} 3. g3 {[%emt 0:00:00]} b5 {[%emt 0:02:24]} 4. Bg2 {[%emt 0:00:00]} Bb7 {[%emt 0:00:10]} 5. d3 {[%emt 0:00:02]} e6 {[%emt 0:01:38]} 6. f4 {[%emt 0:00:52]} f5 {[%emt 0:08:51]} 7. Qe2 {[%emt 0:02:38]} b4 {[%emt 0:04:50]} 8. Nd1 {[%emt 0:03:32]} Nc6 {[%emt 0:13:35]} 9. Nf3 {[%emt 0:13:16]} fxe4 {[%emt 0:04:32]} 10. dxe4 {[%emt 0:00:07]} a5 {[%emt 0:01:05]} 11. e5 {[%emt 0:08:16]} Nh6 {[%emt 0:06:14]} 12. Be3 {[%emt 0:03:25]} Nf5 {[%emt 0:01:12]} 13. Qf2 {[%emt 0:01:14]} Rc8 {[%emt 0:03:16]} 14. O-O {[%emt 0:00:54]} Ba6 {[%emt 0:05:24]} 15. Re1 {[%emt 0:00:07]} Ncd4 {[%emt 0:00:39]} 16. g4 {[%emt 0:06:36]} Nxe3 {[%emt 0:03:00]} 17. Nxe3 {[%emt 0:00:10]} Be7 {[%emt 0:00:15]} 18. Bf1 {[%emt 0:05:13]} Bb7 {[%emt 0:02:58]} 19. Nxd4 {[%emt 0:00:38]} cxd4 {[%emt 0:00:47]} 20. Nc4 {[%emt 0:02:54]} O-O {[%emt 0:00:56]} 21. Red1 {[%emt 0:01:08]} Bc5 {[%emt 0:06:59]} 22. Bd3 {[%emt 0:00:25]} Qc7 {[%emt 0:01:57]} 23. h3 {[%emt 0:07:27]} Qc6 {[%emt 0:02:07]} 24. Kh2 {[%emt 0:01:18]} Rxf4 {[%emt 0:00:47]} 25. Qe2 {[%emt 0:01:45]} Rcf8 {[%emt 0:16:08]} 26. Rf1 {[%emt 0:00:06]} Qd5 {[%emt 0:02:29]} 27. Rxf4 {[%emt 0:02:56]} Rxf4 {[%emt 0:00:03]} 28. Rf1 {[%emt 0:00:07]} g5 {[%emt 0:02:07]} 29. Nd2 {[%emt 0:01:17]} Rxf1 {[%emt 0:00:53]} 30. Nxf1 {[%emt 0:00:08]} Qh1+ {[%emt 0:02:15]} 31. Kg3 {[%emt 0:00:05]} Qg1+ {[%emt 0:00:06]} 0-1

[Event "Karnataka State Open-ch 2018"]
[Site "Bengaluru"]
[Date "2018.04.18"]
[Round "9"]
[White "Arnav, Muralidhar"]
[Black "Parthasarathy, R."]
[Result "0-1"]
[ECO "C28"]
[WhiteElo "1410"]
[BlackElo "1926"]
[Annotator "NA"]
[PlyCount "122"]
[EventDate "2018.??.??"]
[EventType "swiss"]
[EventCountry "IND"]
[SourceTitle "playchess.com"]
[Source "ChessBase"]
[SourceQuality "1"]
[TimeControl "5400+30"]

1. e4 {[%emt 0:00:06]} e5 {[%emt 0:00:45]} 2. Bc4 {[%emt 0:00:14]} Nf6 {[%emt 0:00:07]} 3. Nc3 {[%emt 0:00:11]} Nc6 {[%emt 0:00:04]} 4. d3 {[%emt 0:00:14]} Na5 {[%emt 0:00:03]} 5. Nge2 {[%emt 0:00:16]} c6 {[%emt 0:00:09]} 6. Bg5 {[%emt 0:02:04] C28: Vienna Game: 2...Nf6 3 Bc4 Nc6} (6. O-O Be7 7. a4 Nxc4 8. dxc4 d6 9. b3 O-O 10. Ng3 h6 11. h3 Be6 12. Qf3 Qa5 13. Rd1 Rfd8 14. Ba3 {½-½ (23) Vavulin,M (2604)-Movsesian,S (2679) Moscow 2017}) 6... b5 {[%emt 0:04:14]} 7. Bb3 {[%emt 0:01:48]} Be7 {[%emt 0:04:16]} 8. O-O {[%emt 0:02:07]} b4 {[%emt 0:01:06]} 9. Nb1 {[%emt 0:01:07]} Nxb3 {[%emt 0:00:59]} 10. axb3 {[%emt 0:00:20]} d5 {[%emt 0:00:07]} 11. Nd2 {[%emt 0:02:14]} O-O $146 {[%emt 0:07:59]} ({Find the theoretical novelty and annotate with similar games:} 11... Qb6 12. Be3 Qb7 13. Nf3 Bd6 {1-0 (47) Macek,K (1930)-Zlamal,F (1920) Prague 2006}) 12. Ng3 {[%emt 0:05:49]} h6 {[%emt 0:02:03]} 13. Bxf6 {[%emt 0:00:52]} Bxf6 {[%emt 0:00:03]} 14. Nf3 {[%emt 0:01:05]} Qb6 {[%emt 0:02:27]} 15. Qe2 {[%emt 0:03:52]} g6 {[%emt 0:08:18]} 16. Qe3 {[%emt 0:02:42]} Qxe3 {[%emt 0:02:28]} 17. fxe3 {[%emt 0:00:10]} Bg4 {[%emt 0:09:06]} 18. Ra4 {[%emt 0:02:11]} Bxf3 {[%emt 0:01:18]} 19. Rxf3 {[%emt 0:01:29]} Be7 {[%emt 0:00:48]} 20. Ra6 {[%emt 0:01:44]} Rfc8 {[%emt 0:01:43]} 21. Kf2 {[%emt 0:04:46]} Bc5 {[%emt 0:08:15]} 22. Rf6 {[%emt 0:02:43]} Bb6 {[%emt 0:00:40]} 23. Ke2 {[%emt 0:01:37]} Rab8 {[%emt 0:04:56]} 24. Rd6 {[%emt 0:02:29]} Kf8 {[%emt 0:02:31]} 25. Rf6 {[%emt 0:00:53]} Ke7 {[%emt 0:00:39]} 26. Rf3 {[%emt 0:00:49]} Rb7 {[%emt 0:02:32]} 27. Nh1 {[%emt 0:01:25]} h5 {[%emt 0:03:06]} 28. Nf2 {[%emt 0:00:22]} Ke6 {[%emt 0:02:00]} 29. g4 {[%emt 0:02:29]} hxg4 {[%emt 0:01:16]} 30. Nxg4 {[%emt 0:00:11]} f5 {[%emt 0:01:18]} 31. Nf2 {[%emt 0:00:27]} Rh7 {[%emt 0:04:55]} 32. h3 {[%emt 0:00:10]} dxe4 {[%emt 0:03:41]} 33. dxe4 {[%emt 0:00:15]} Rd8 {[%emt 0:02:29]} 34. Rg3 {[%emt 0:02:01]} Kf6 {[%emt 0:00:14]} 35. Ra1 {[%emt 0:02:14]} Rhd7 {[%emt 0:02:04]} 36. Rd1 {[%emt 0:00:35]} f4 {[%emt 0:02:04]} 37. Rf3 {[%emt 0:03:30]} Rxd1 {[%emt 0:03:59]} 38. Nxd1 {[%emt 0:00:41]} g5 {[%emt 0:00:04]} 39. Nf2 {[%emt 0:01:16]} Ke6 {[%emt 0:00:09]} 40. Ng4 {[%emt 0:00:34]} Rh8 {[%emt 0:02:01]} 41. exf4 {[%emt 0:02:59]} gxf4 {[%emt 0:00:23]} 42. Rd3 {[%emt 0:02:14]} a5 {[%emt 0:00:24]} 43. Nh2 {[%emt 0:07:55]} Be3 {[%emt 0:02:31]} 44. Nf1 {[%emt 0:02:41]} Bc1 {[%emt 0:01:38]} 45. Nd2 {[%emt 0:01:24]} Bxb2 {[%emt 0:00:14]} 46. Nc4 {[%emt 0:00:27]} Bd4 {[%emt 0:00:24]} 47. Nxa5 {[%emt 0:00:31]} c5 {[%emt 0:00:07]} 48. Nc6 {[%emt 0:01:35]} Rg8 {[%emt 0:00:49]} 49. Nxd4+ {[%emt 0:00:17]} cxd4 {[%emt 0:00:45]} 50. Kf2 {[%emt 0:00:22]} Rc8 {[%emt 0:00:31]} 51. Rd2 {[%emt 0:00:10]} Rc3 {[%emt 0:00:15]} 52. Kg2 {[%emt 0:00:18]} Re3 {[%emt 0:00:18]} 53. Kh2 {[%emt 0:01:09]} Rxe4 {[%emt 0:00:33]} 54. Rg2 {[%emt 0:00:23]} f3 {[%emt 0:01:05]} 55. Rg3 {[%emt 0:00:47]} Re2+ {[%emt 0:00:52]} 56. Kg1 {[%emt 0:00:11]} e4 {[%emt 0:01:30]} 57. h4 {[%emt 0:00:08]} Rxc2 {[%emt 0:00:05]} 58. h5 {[%emt 0:00:30]} Rg2+ {[%emt 0:00:32]} 59. Kh1 {[%emt 0:01:12]} Rxg3 {[%emt 0:00:07]} 60. h6 {[%emt 0:00:09]} f2 {[%emt 0:00:10]} 61. h7 {[%emt 0:00:11]} f1=Q+ {[%emt 0:00:19]} 0-1

[Event "Karnataka State Open-ch 2018"]
[Site "Bengaluru"]
[Date "2018.04.18"]
[Round "9"]
[White "Rakesh, N."]
[Black "Santoshkashyap, HG."]
[Result "0-1"]
[ECO "B17"]
[WhiteElo "1359"]
[BlackElo "1929"]
[Annotator "NA RC"]
[PlyCount "46"]
[EventDate "2018.??.??"]
[EventType "swiss"]
[EventCountry "IND"]
[SourceTitle "playchess.com"]
[Source "ChessBase"]
[SourceQuality "1"]
[TimeControl "5400+30"]

1. e4 {[%emt 0:00:00]} c6 {[%emt 0:00:17]} 2. d4 {[%emt 0:00:59]} d5 {[%emt 0:00:08]} 3. Nc3 {[%emt 0:01:10]} dxe4 {[%emt 0:00:09]} 4. Nxe4 {[%emt 0:00:07]} Nd7 {[%emt 0:00:11]} 5. Nf3 {[%emt 0:01:12]} Ngf6 {[%emt 0:00:17]} 6. Nxf6+ {[%emt 0:02:06]} Nxf6 {[%emt 0:00:06]} 7. h3 {[%emt 0:00:19]} Bf5 {[%emt 0:01:15]} 8. Bd3 {[%emt 0:03:25]} e6 {[%emt 0:00:54]} 9. O-O {[%emt 0:03:02]} Bxd3 {[%emt 0:02:12]} 10. Qxd3 {[%emt 0:00:20]} Bd6 {[%emt 0:00:16]} 11. b3 {[%emt 0:01:34]} O-O {[%emt 0:00:13]} 12. c4 {[%emt 0:00:51]} Qc7 {[%emt 0:04:59]} 13. Bg5 {[%emt 0:03:55]} Be7 {[%emt 0:03:34]} 14. Rad1 {[%emt 0:01:37]} Rad8 {[%emt 0:00:10]} 15. Rfe1 {[%emt 0:04:43]} h6 {[%emt 0:05:56]} 16. Bh4 {[%emt 0:03:54]} c5 17. Qc2 cxd4 {[%emt 0:12:14]} 18. Nxd4 {[%emt 0:02:25]} a6 {[%emt 0:05:03]} 19. Nf3 {[%emt 0:07:56]} Qa5 {[%emt 0:05:18]} 20. a4 {[%emt 0:06:19]} Rfe8 {[%emt 0:09:00]} 21. Nd4 {[%emt 0:07:15]} Rxd4 {[%emt 0:00:24]} 22. Rxd4 {[%emt 0:00:20]} Qxe1+ {[%emt 0:00:07]} 23. Kh2 {[%emt 0:00:04]} Qe5+ {[%emt 0:00:08]} 0-1

[Event "Karnataka State Open-ch 2018"]
[Site "Bengaluru"]
[Date "2018.04.18"]
[Round "10"]
[White "Gavi, Siddayya"]
[Black "Rakshith Srinivasan"]
[Result "1-0"]
[ECO "C91"]
[WhiteElo "1993"]
[BlackElo "1597"]
[Annotator "NA RC"]
[PlyCount "131"]
[EventDate "2018.??.??"]
[EventType "swiss"]
[EventCountry "IND"]
[SourceTitle "playchess.com"]
[Source "ChessBase"]
[SourceQuality "1"]
[TimeControl "5400+30"]

{[%evp 15,123,16,39,16,16,0,0,0,32767,32767,32767,32767,32767,32767,32767,32767,32767,32767,3,0,42,47,61,65,62,81,107,68,83,81,75,77,88,98,135,72,72,40,68,66,67,41,45,34,67,67,79,74,84,74,85,75,91,34,130,64,153,181,192,189,214,197,195,216,219,193,32767,32767,32767,264,32767,32767,32767,32767,219,162,618,702,32767,32767,32767,32767,32767,150,187,158,156,230,172,117,212,171,32767,270,355,378,315,32767,32767,32767,32767,32767,181,0,32767,32767,32767,32767,855,475]} 1. e4 {[%emt 0:00:00]} e5 {[%emt 0:00:01]} 2. Nf3 {[%emt 0:00:00]} Nc6 {[%emt 0:00:05]} 3. Bb5 {[%emt 0:00:00]} a6 {[%emt 0:00:03]} 4. Ba4 {[%emt 0:00:03]} Nf6 {[%emt 0:00:03]} 5. O-O {[%emt 0:00:14]} Be7 {[%emt 0:00:03]} 6. Re1 {[%emt 0:00:16]} b5 {[%emt 0:00:03]} 7. Bb3 {[%emt 0:00:06]} d6 {[%emt 0:00:03]} 8. c3 {[%emt 0:00:28]} O-O {[%emt 0:00:04]} 9. d4 {[%emt 0:01:44]} Bg4 {[%emt 0:00:07]} 10. d5 {[%emt 0:00:07]} Na5 {[%emt 0:00:38]} 11. Bc2 {[%emt 0:00:10] LiveBook: 1182 Games} c6 {[%emt 0:00:48]} 12. dxc6 {[%emt 0:00:26]} Nxc6 {[%emt 0:00:27]} 13. h3 {[%emt 0:00:31]} Bh5 {[%emt 0:00:19]} 14. Bg5 {[%emt 0:01:12]} Qc7 {[%emt 0:01:32]} 15. Nbd2 {[%emt 0:00:51]} Rfd8 {[%emt 0:01:11]} 16. Bxf6 {[%emt 0:00:38]} Bxf6 {[%emt 0:00:11]} 17. Nf1 {[%emt 0:00:07]} Bxf3 {[%emt 0:07:38]} 18. Qxf3 {[%emt 0:01:32]} Bg5 {[%emt 0:02:06]} 19. Bb3 {[%emt 0:01:17]} Na5 {[%emt 0:04:20]} 20. Bd5 {[%emt 0:02:56]} Ra7 {[%emt 0:02:19]} 21. Rad1 {[%emt 0:01:59]} Bf4 {[%emt 0:01:45]} 22. Rd3 {[%emt 0:02:17]} Nc4 {[%emt 0:01:59]} 23. Qe2 {[%emt 0:00:22]} Qc5 {[%emt 0:01:16]} 24. Red1 {[%emt 0:00:59]} Rad7 {[%emt 0:00:18]} 25. Ng3 {[%emt 0:01:51]} g6 {[%emt 0:05:04]} 26. Qc2 {[%emt 0:02:11]} Bxg3 {[%emt 0:02:55]} 27. Rxg3 {[%emt 0:00:03]} Nb6 {[%emt 0:00:26]} 28. Qb3 {[%emt 0:00:42]} Nxd5 {[%emt 0:02:25]} 29. Rxd5 {[%emt 0:00:07]} Qc6 {[%emt 0:00:19]} 30. Rgd3 {[%emt 0:00:15]} Kg7 {[%emt 0:02:51]} 31. Rd2 {[%emt 0:03:02]} h6 {[%emt 0:09:02]} 32. Qc2 {[%emt 0:01:57]} Qc4 {[%emt 0:01:34]} 33. b3 {[%emt 0:00:13]} Qc7 {[%emt 0:03:02]} 34. Qd3 {[%emt 0:00:29]} (34. c4 $16) 34... Kf8 {[%emt 0:01:08]} (34... Rc8 $14) 35. Rc2 {[%emt 0:00:25]} f6 {[%emt 0:06:02]} ({Black should try} 35... Rc8 $14) 36. c4 {[%emt 0:02:33]} bxc4 {[%emt 0:03:53]} 37. Rxc4 {[%emt 0:02:32]} Qb6 {[%emt 0:06:34]} 38. Qc3 {[%emt 0:00:38]} Ke7 {[%emt 0:01:45]} 39. Rc6 {[%emt 0:02:22]} Qb7 {[%emt 0:00:04]} 40. Qc4 {[%emt 0:00:11]} Ra8 {[%emt 0:00:35]} 41. Ra5 {[%emt 0:00:43]} h5 {[%emt 0:00:40]} 42. b4 {[%emt 0:00:52]} ({Don't do} 42. Raxa6 $6 Rxa6 43. Rxa6 Rc7 $16) 42... Rb8 {[%emt 0:00:58]} 43. a3 {[%emt 0:00:09]} Ra8 {[%emt 0:00:02]} 44. Raxa6 {[%emt 0:00:10]} Rxa6 {[%emt 0:00:08]} 45. Qxa6 {[%emt 0:00:09]} Qb8 $2 {[%emt 0:01:06]} (45... Qxa6 46. Rxa6 Rc7) 46. Rc8 {[%emt 0:00:27]} Qa7 {[%emt 0:00:40]} 47. Qxa7 {[%emt 0:02:00]} Rxa7 {[%emt 0:00:01]} 48. Rc3 {[%emt 0:00:03]} f5 {[%emt 0:00:11] [#]} 49. f3 $1 {[%emt 0:00:54]} d5 {[%emt 0:01:03]} 50. exd5 {[%emt 0:00:53]} Kd6 {[%emt 0:00:02]} 51. Kf2 {[%emt 0:00:17]} Kxd5 {[%emt 0:00:06]} 52. Ke3 {[%emt 0:00:08]} g5 {[%emt 0:00:58]} 53. Kd3 {[%emt 0:00:55]} Ra8 {[%emt 0:04:46] [#]} 54. b5 $1 {[%emt 0:01:59]} Ra7 {[%emt 0:10:13]} 55. g4 {[%emt 0:03:21]} hxg4 {[%emt 0:01:29]} 56. hxg4 {[%emt 0:00:04]} e4+ {[%emt 0:00:46]} 57. fxe4+ {[%emt 0:00:06]} fxe4+ {[%emt 0:00:02]} 58. Ke3 {[%emt 0:04:00]} Rh7 {[%emt 0:02:32]} 59. b6 $2 {[%emt 0:00:19]} (59. a4 $18) 59... Rh3+ {[%emt 0:00:24]} 60. Kd2 {[%emt 0:00:10]} Rh2+ {[%emt 0:00:08]} 61. Kc1 {[%emt 0:00:15]} Kd4 $2 {[%emt 0:02:34]} 62. Rc8 $18 {[%emt 0:00:45]} e3 {[%emt 0:00:34]} 63. b7 {[%emt 0:00:11]} e2 {[%emt 0:00:06]} 64. Kd2 {[%emt 0:00:15]} e1=Q+ {[%emt 0:01:21]} 65. Kxe1 {[%emt 0:00:06]} Ke3 {[%emt 0:00:03]} 66. Re8+ {[%emt 0:00:07]} 1-0